[Event "Early-Titled-Tuesday-Blitz-January-16-2024"]
[Site "Chess.com"]
[Date "2024.01.16"]
[Round "3"]
[White "Oleksandr_Bortnyk"]
[Black "krzyzan94"]
[Result "0-1"]
[WhiteElo "3094"]
[BlackElo "2813"]
[TimeControl "180+1"]
[EndTime "8:30:26 PST"]
[Termination "krzyzan94 won by resignation"]

1. e4 {[%clk 0:02:59.7]} 1... e5 {[%clk 0:02:58.3]} 2. Bc4 {[%clk 0:02:55.9]}
2... Nf6 {[%clk 0:02:57.3]} 3. d3 {[%clk 0:02:56.5]} 3... Nc6 {[%clk 0:02:55]}
4. Nc3 {[%clk 0:02:56]} 4... Na5 {[%clk 0:02:54.6]} 5. f4 {[%clk 0:02:52.9]}
5... Nxc4 {[%clk 0:02:52.4]} 6. dxc4 {[%clk 0:02:53.8]} 6... Bb4 {[%clk
0:02:44.3]} 7. Qf3 {[%clk 0:02:41]} 7... d6 {[%clk 0:02:31.6]} 8. fxe5 {[%clk
0:02:12.5]} 8... dxe5 {[%clk 0:02:31.1]} 9. Bg5 {[%clk 0:02:12.5]} 9... h6
{[%clk 0:02:23.4]} 10. Rd1 {[%clk 0:01:58.5]} 10... Qe7 {[%clk 0:02:22.4]} 11.
Bxf6 {[%clk 0:01:58.8]} 11... Qxf6 {[%clk 0:02:22.2]} 12. Ne2 {[%clk 0:01:30.1]}
12... Qxf3 {[%clk 0:02:13]} 13. gxf3 {[%clk 0:01:31]} 13... Be6 {[%clk
0:02:13.5]} 14. b3 {[%clk 0:01:30.2]} 14... c6 {[%clk 0:01:59.3]} 15. Kf2 {[%clk
0:01:30.2]} 15... Ke7 {[%clk 0:01:58.7]} 16. h4 {[%clk 0:01:29.1]} 16... Rad8
{[%clk 0:01:57.3]} 17. Rxd8 {[%clk 0:01:12.4]} 17... Rxd8 {[%clk 0:01:57.4]} 18.
Rd1 {[%clk 0:01:13.2]} 18... Rh8 {[%clk 0:01:48.7]} 19. Rd3 {[%clk 0:01:04.7]}
19... g5 {[%clk 0:01:38.8]} 20. h5 {[%clk 0:01:04]} 20... Rg8 {[%clk 0:01:36.5]}
21. Nd1 {[%clk 0:00:54.7]} 21... g4 {[%clk 0:01:32.9]} 22. Ne3 {[%clk
0:00:54.8]} 22... Bc5 {[%clk 0:01:29.7]} 23. Ng3 {[%clk 0:00:53.3]} 23... a5
{[%clk 0:01:11.8]} 24. a4 {[%clk 0:00:50.6]} 24... Rg5 {[%clk 0:01:00.1]} 25. c3
{[%clk 0:00:36.5]} 25... f5 {[%clk 0:00:48.7]} 26. exf5 {[%clk 0:00:18.1]} 26...
Bxf5 {[%clk 0:00:49.2]} 27. Rd2 {[%clk 0:00:05.6]} 27... gxf3 {[%clk 0:00:47.1]}
28. Nxf5+ {[%clk 0:00:06.1]} 28... Rxf5 {[%clk 0:00:46.5]} 29. b4 {[%clk
0:00:06.7]} 29... axb4 {[%clk 0:00:40.7]} 30. cxb4 {[%clk 0:00:07]} 30... Bxe3+
{[%clk 0:00:39.5]} 31. Kxe3 {[%clk 0:00:07.9]} 31... Rxh5 {[%clk 0:00:35.4]} 32.
Kxf3 {[%clk 0:00:07.9]} 32... Rh4 {[%clk 0:00:35.2]} 33. Rc2 {[%clk 0:00:07.8]}
33... Rf4+ {[%clk 0:00:33.7]} 34. Ke3 {[%clk 0:00:08]} 34... h5 {[%clk
0:00:34.4]} 35. a5 {[%clk 0:00:08.7]} 35... h4 {[%clk 0:00:33.6]} 36. b5 {[%clk
0:00:07.8]} 36... Kd6 {[%clk 0:00:25.8]} 37. c5+ {[%clk 0:00:06.2]} 37... Kd5
{[%clk 0:00:24.7]} 38. a6 {[%clk 0:00:04.2]} 38... bxa6 {[%clk 0:00:24.5]} 39.
b6 {[%clk 0:00:02.5]} 39... Rb4 {[%clk 0:00:23.7]} 40. Kd3 {[%clk 0:00:01.7]}
40... h3 {[%clk 0:00:23]} 41. Rc1 {[%clk 0:00:01.4]} 41... Rb3+ {[%clk
0:00:20.3]} 42. Kc2 {[%clk 0:00:01.7]} 42... Rb5 {[%clk 0:00:20.4]} 43. Kd3
{[%clk 0:00:02.1]} 43... h2 {[%clk 0:00:20.6]} 44. Rh1 {[%clk 0:00:02.1]} 44...
Kxc5 {[%clk 0:00:20]} 45. b7 {[%clk 0:00:02.8]} 45... Rxb7 {[%clk 0:00:18.7]}
46. Rxh2 {[%clk 0:00:03.1]} 46... Rb4 {[%clk 0:00:17.3]} 47. Ra2 {[%clk
0:00:02.7]} 47... e4+ {[%clk 0:00:14.8]} 48. Kc3 {[%clk 0:00:02.6]} 48... Kb5
{[%clk 0:00:13.7]} 49. Rh2 {[%clk 0:00:03.2]} 49... a5 {[%clk 0:00:13.1]} 50.
Rh5+ {[%clk 0:00:03.1]} 50... c5 {[%clk 0:00:13.5]} 51. Rh8 {[%clk 0:00:03.6]}
51... Rc4+ {[%clk 0:00:14.1]} 52. Kb3 {[%clk 0:00:04.3]} 52... a4+ {[%clk
0:00:14.6]} 53. Kb2 {[%clk 0:00:04.7]} 53... Rb4+ {[%clk 0:00:13.9]} 54. Kc2
{[%clk 0:00:04.7]} 54... Kc4 {[%clk 0:00:14.1]} 55. Re8 {[%clk 0:00:04.6]} 55...
Kd4 {[%clk 0:00:13.9]} 56. Rd8+ {[%clk 0:00:05]} 56... Ke3 {[%clk 0:00:14.2]}
57. Rh8 {[%clk 0:00:05.8]} 57... a3 {[%clk 0:00:13.4]} 58. Rh3+ {[%clk
0:00:06.4]} 58... Kf2 {[%clk 0:00:13.3]} 59. Rxa3 {[%clk 0:00:07.1]} 59... e3
{[%clk 0:00:13.9]} 60. Ra8 {[%clk 0:00:07.5]} 60... Rc4+ {[%clk 0:00:13.1]} 61.
Kd3 {[%clk 0:00:06.9]} 61... Rd4+ {[%clk 0:00:13.5]} 62. Kc2 {[%clk 0:00:07.7]}
62... e2 {[%clk 0:00:13.6]} 63. Rf8+ {[%clk 0:00:08.5]} 63... Ke1 {[%clk
0:00:09.3]} 64. Rh8 {[%clk 0:00:08.2]} 64... Rc4+ {[%clk 0:00:08.5]} 65. Kd3
{[%clk 0:00:08.7]} 65... Rd4+ {[%clk 0:00:06.8]} 66. Kc2 {[%clk 0:00:08.7]}
66... Rd6 {[%clk 0:00:03.4]} 67. Rh1+ {[%clk 0:00:05.6]} 67... Kf2 {[%clk
0:00:03.8]} 68. Rh2+ {[%clk 0:00:06.5]} 68... Kf3 {[%clk 0:00:04.3]} 69. Rh1
{[%clk 0:00:02.7]} 69... Kg2 {[%clk 0:00:04.7]} 70. Rh8 {[%clk 0:00:01.7]} 70...
e1=Q {[%clk 0:00:04.8]} 0-1

[Event "Early-Titled-Tuesday-Blitz-January-16-2024"]
[Site "Chess.com"]
[Date "2024.01.16"]
[Round "3"]
[White "GodDMuhammad"]
[Black "brm72"]
[Result "0-1"]
[WhiteElo "2366"]
[BlackElo "2707"]
[TimeControl "180+1"]
[EndTime "8:30:30 PST"]
[Termination "brm72 won by resignation"]

1. f4 {[%clk 0:03:00.9]} 1... Nf6 {[%clk 0:02:56.9]} 2. Nf3 {[%clk 0:02:59.2]}
2... g6 {[%clk 0:02:57.3]} 3. d3 {[%clk 0:02:58.6]} 3... d5 {[%clk 0:02:56.5]}
4. g3 {[%clk 0:02:57.2]} 4... Bg7 {[%clk 0:02:56.5]} 5. Bg2 {[%clk 0:02:57.6]}
5... O-O {[%clk 0:02:57]} 6. c3 {[%clk 0:02:58.2]} 6... c5 {[%clk 0:02:57.2]} 7.
Nbd2 {[%clk 0:02:55.9]} 7... Nc6 {[%clk 0:02:57.5]} 8. e4 {[%clk 0:02:56.1]}
8... dxe4 {[%clk 0:02:56.5]} 9. dxe4 {[%clk 0:02:57]} 9... e5 {[%clk 0:02:56.8]}
10. f5 {[%clk 0:02:57.5]} 10... gxf5 {[%clk 0:02:55.8]} 11. exf5 {[%clk
0:02:58]} 11... Bxf5 {[%clk 0:02:55.6]} 12. Nh4 {[%clk 0:02:58.5]} 12... Bg6
{[%clk 0:02:55.7]} 13. O-O {[%clk 0:02:55.8]} 13... Qd7 {[%clk 0:02:50.9]} 14.
Qe1 {[%clk 0:02:50.9]} 14... Rae8 {[%clk 0:02:41.3]} 15. Ndf3 {[%clk 0:02:45.2]}
15... e4 {[%clk 0:02:38.6]} 16. Ng5 {[%clk 0:02:45]} 16... Ne5 {[%clk
0:02:16.9]} 17. Be3 {[%clk 0:02:06.4]} 17... Nd3 {[%clk 0:02:12.3]} 18. Qd2
{[%clk 0:01:57.6]} 18... b6 {[%clk 0:02:08]} 19. Rad1 {[%clk 0:01:51.7]} 19...
c4 {[%clk 0:02:08]} 20. Bd4 {[%clk 0:01:47.4]} 20... Nd5 {[%clk 0:02:02.3]} 21.
Bxg7 {[%clk 0:01:41.4]} 21... Kxg7 {[%clk 0:02:03.2]} 22. Bh3 {[%clk 0:01:32.4]}
22... Qc7 {[%clk 0:01:50.6]} 23. Nf5+ {[%clk 0:01:23.4]} 23... Kh8 {[%clk
0:01:45.7]} 24. Nd4 {[%clk 0:01:13.7]} 24... e3 {[%clk 0:01:42.9]} 25. Qe2
{[%clk 0:01:11.7]} 25... Qe5 {[%clk 0:01:37.4]} 26. Ngf3 {[%clk 0:01:06.6]}
26... Qh5 {[%clk 0:01:35.1]} 27. Bg2 {[%clk 0:01:01]} 27... Nf2 {[%clk
0:01:35.3]} 28. Qxc4 {[%clk 0:00:49.8]} 28... Nxd1 {[%clk 0:01:33.4]} 29. Rxd1
{[%clk 0:00:50]} 29... Nf6 {[%clk 0:01:24.4]} 30. Ne2 {[%clk 0:00:45.7]} 30...
Rd8 {[%clk 0:01:20.3]} 31. Re1 {[%clk 0:00:44.8]} 31... Be4 {[%clk 0:01:13.4]}
32. Nf4 {[%clk 0:00:39.9]} 32... Qc5 {[%clk 0:01:08.5]} 33. Qxc5 {[%clk
0:00:33.5]} 33... bxc5 {[%clk 0:01:09.4]} 34. Rxe3 {[%clk 0:00:33.9]} 34... Bxf3
{[%clk 0:01:05.6]} 35. Bxf3 {[%clk 0:00:33.4]} 35... Rd2 {[%clk 0:01:05.4]} 36.
Re2 {[%clk 0:00:27.8]} 36... Rfd8 {[%clk 0:01:04.6]} 37. Kf2 {[%clk 0:00:27.7]}
37... Rxe2+ {[%clk 0:01:02.3]} 38. Kxe2 {[%clk 0:00:28.6]} 38... Kg7 {[%clk
0:00:55.4]} 39. b3 {[%clk 0:00:27.5]} 39... Nd7 {[%clk 0:00:49.8]} 40. c4 {[%clk
0:00:23.2]} 40... Ne5 {[%clk 0:00:49.1]} 41. Bd5 {[%clk 0:00:23.4]} 41... Re8
{[%clk 0:00:45.3]} 42. Kd2 {[%clk 0:00:15.5]} 42... Ng4 {[%clk 0:00:43.2]} 43.
h3 {[%clk 0:00:15.5]} 43... Ne3 {[%clk 0:00:41.6]} 44. g4 {[%clk 0:00:13.7]}
44... Nf1+ {[%clk 0:00:38.9]} 45. Kc2 {[%clk 0:00:12.8]} 45... Ne3+ {[%clk
0:00:35.2]} 46. Kd3 {[%clk 0:00:12.7]} 46... Nd1 {[%clk 0:00:31.3]} 47. Nh5+
{[%clk 0:00:11.2]} 47... Kg6 {[%clk 0:00:30.4]} 48. Ng3 {[%clk 0:00:11.5]} 48...
Nf2+ {[%clk 0:00:29.3]} 49. Kc3 {[%clk 0:00:11.7]} 49... Nxh3 {[%clk 0:00:29.3]}
50. Nf5 {[%clk 0:00:11.3]} 50... Nf2 {[%clk 0:00:25.6]} 51. Nd6 {[%clk
0:00:11.5]} 51... Re7 {[%clk 0:00:23.8]} 52. Nb7 {[%clk 0:00:09.5]} 52... Rc7
{[%clk 0:00:21.8]} 53. Nd6 {[%clk 0:00:07.7]} 53... Nxg4 {[%clk 0:00:20.6]} 54.
Kd3 {[%clk 0:00:08.1]} 54... h5 {[%clk 0:00:20.5]} 55. Ke4 {[%clk 0:00:08.5]}
55... Nf6+ {[%clk 0:00:18.7]} 56. Ke5 {[%clk 0:00:08]} 56... Nxd5 {[%clk
0:00:19.1]} 57. cxd5 {[%clk 0:00:08.9]} 57... Re7+ {[%clk 0:00:18.1]} 58. Kf4
{[%clk 0:00:09.1]} 58... Rd7 {[%clk 0:00:17.1]} 59. Ke5 {[%clk 0:00:09.3]} 59...
h4 {[%clk 0:00:14.8]} 60. Ne4 {[%clk 0:00:09.8]} 60... h3 {[%clk 0:00:13.1]} 61.
Nxc5 {[%clk 0:00:09.7]} 61... Re7+ {[%clk 0:00:11.4]} 62. Kd6 {[%clk 0:00:09.8]}
62... Re3 {[%clk 0:00:10.2]} 63. Kc7 {[%clk 0:00:07.8]} 63... h2 {[%clk
0:00:10.7]} 64. d6 {[%clk 0:00:08.4]} 64... h1=Q {[%clk 0:00:09.6]} 65. d7
{[%clk 0:00:09.3]} 65... Qh2+ {[%clk 0:00:09]} 66. Kc8 {[%clk 0:00:09.3]} 66...
Qd6 {[%clk 0:00:07.3]} 67. d8=Q {[%clk 0:00:08.8]} 67... Qxc5+ {[%clk
0:00:07.7]} 68. Kb7 {[%clk 0:00:08.7]} 68... Qb6+ {[%clk 0:00:07.8]} 69. Qxb6+
{[%clk 0:00:08.3]} 69... axb6 {[%clk 0:00:08.7]} 70. Kxb6 {[%clk 0:00:09.2]}
70... f5 {[%clk 0:00:08.4]} 71. b4 {[%clk 0:00:09.7]} 71... f4 {[%clk
0:00:08.8]} 72. a4 {[%clk 0:00:10.2]} 72... f3 {[%clk 0:00:09.2]} 73. a5 {[%clk
0:00:11.1]} 73... f2 {[%clk 0:00:09.7]} 74. a6 {[%clk 0:00:12]} 74... f1=Q
{[%clk 0:00:10.1]} 75. a7 {[%clk 0:00:12.8]} 75... Qf6+ {[%clk 0:00:10.2]} 76.
Ka5 {[%clk 0:00:12.9]} 76... Ra3+ {[%clk 0:00:10.1]} 77. Kb5 {[%clk 0:00:12.9]}
77... Qa6+ {[%clk 0:00:09.9]} 78. Kc5 {[%clk 0:00:12.8]} 78... Qxa7+ {[%clk
0:00:10.5]} 0-1

[Event "Early-Titled-Tuesday-Blitz-January-16-2024"]
[Site "Chess.com"]
[Date "2024.01.16"]
[Round "3"]
[White "andrzej"]
[Black "DraningWaterHi"]
[Result "0-1"]
[WhiteElo "2388"]
[BlackElo "2146"]
[TimeControl "180+1"]
[EndTime "8:30:32 PST"]
[Termination "DraningWaterHi won by checkmate"]

1. e4 {[%clk 0:03:00.9]} 1... e5 {[%clk 0:02:57.4]} 2. Nf3 {[%clk 0:03:01.1]}
2... Nc6 {[%clk 0:02:50.3]} 3. Bb5 {[%clk 0:03:01.3]} 3... a6 {[%clk 0:02:49.4]}
4. Ba4 {[%clk 0:03:01.7]} 4... b5 {[%clk 0:02:48.6]} 5. Bb3 {[%clk 0:03:01.6]}
5... Nf6 {[%clk 0:02:47.4]} 6. O-O {[%clk 0:02:57]} 6... Be7 {[%clk 0:02:47.1]}
7. Re1 {[%clk 0:02:56.3]} 7... O-O {[%clk 0:02:46.3]} 8. a4 {[%clk 0:02:55.9]}
8... b4 {[%clk 0:02:45.6]} 9. d4 {[%clk 0:02:55.6]} 9... d6 {[%clk 0:02:43.4]}
10. dxe5 {[%clk 0:02:55.8]} 10... dxe5 {[%clk 0:02:43.7]} 11. Nbd2 {[%clk
0:02:55.7]} 11... Bg4 {[%clk 0:02:42.8]} 12. h3 {[%clk 0:02:32.8]} 12... Bc8
{[%clk 0:02:35.7]} 13. Bc4 {[%clk 0:02:18.2]} 13... Bb7 {[%clk 0:02:32.9]} 14.
Qe2 {[%clk 0:02:16.3]} 14... Nd4 {[%clk 0:02:31.8]} 15. Nxd4 {[%clk 0:02:16.1]}
15... Qxd4 {[%clk 0:02:32.4]} 16. Bd3 {[%clk 0:01:54.5]} 16... Bd6 {[%clk
0:02:28.7]} 17. Nb3 {[%clk 0:01:53.9]} 17... Qb6 {[%clk 0:02:24.5]} 18. Be3
{[%clk 0:01:48.7]} 18... c5 {[%clk 0:02:24.5]} 19. a5 {[%clk 0:01:48.6]} 19...
Qc6 {[%clk 0:02:23.4]} 20. Bg5 {[%clk 0:01:41.3]} 20... Ne8 {[%clk 0:02:18.6]}
21. Bc4 {[%clk 0:01:39.9]} 21... Kh8 {[%clk 0:02:15.3]} 22. Rad1 {[%clk
0:01:35.2]} 22... f6 {[%clk 0:02:15.5]} 23. Bc1 {[%clk 0:01:31.7]} 23... Be7
{[%clk 0:02:15.6]} 24. Rd3 {[%clk 0:01:22]} 24... Nd6 {[%clk 0:02:14.7]} 25. Bd5
{[%clk 0:01:22.1]} 25... Qb5 {[%clk 0:02:12.7]} 26. Bxb7 {[%clk 0:01:21.6]}
26... Nxb7 {[%clk 0:02:13.6]} 27. Rd5 {[%clk 0:01:14.3]} 27... Nxa5 {[%clk
0:02:11]} 28. Qxb5 {[%clk 0:01:06.9]} 28... axb5 {[%clk 0:02:11.9]} 29. Nxc5
{[%clk 0:01:07.1]} 29... Rfd8 {[%clk 0:02:03.3]} 30. Ne6 {[%clk 0:00:58.6]}
30... Rxd5 {[%clk 0:02:01.2]} 31. exd5 {[%clk 0:00:59]} 31... Nc4 {[%clk
0:02:01.2]} 32. b3 {[%clk 0:00:55.3]} 32... Nb6 {[%clk 0:01:59]} 33. Rd1 {[%clk
0:00:53.4]} 33... Bd6 {[%clk 0:01:59.2]} 34. Be3 {[%clk 0:00:52.6]} 34... Nd7
{[%clk 0:01:58.2]} 35. g4 {[%clk 0:00:47.7]} 35... Ra2 {[%clk 0:01:54.6]} 36.
Rd2 {[%clk 0:00:47.9]} 36... Kg8 {[%clk 0:01:53.2]} 37. Nd8 {[%clk 0:00:46.6]}
37... Bc5 {[%clk 0:01:45.6]} 38. Bxc5 {[%clk 0:00:40.4]} 38... Nxc5 {[%clk
0:01:46.5]} 39. d6 {[%clk 0:00:40.8]} 39... Ra7 {[%clk 0:01:18.7]} 40. Nc6
{[%clk 0:00:40.1]} 40... Rd7 {[%clk 0:01:18.5]} 41. Nxb4 {[%clk 0:00:39.6]}
41... Ne4 {[%clk 0:01:18]} 42. Rd5 {[%clk 0:00:39]} 42... Rxd6 {[%clk
0:01:13.8]} 43. Rxb5 {[%clk 0:00:38.1]} 43... Nc3 {[%clk 0:01:10.3]} 44. Rb7
{[%clk 0:00:35.3]} 44... Rd2 {[%clk 0:01:00.2]} 45. Rc7 {[%clk 0:00:23.5]} 45...
Ne4 {[%clk 0:00:57.9]} 46. Nd3 {[%clk 0:00:20.5]} 46... Rd1+ {[%clk 0:00:53.7]}
47. Kg2 {[%clk 0:00:20.4]} 47... Rb1 {[%clk 0:00:53.1]} 48. Nc5 {[%clk 0:00:17]}
48... Nd6 {[%clk 0:00:42.7]} 49. Ne6 {[%clk 0:00:16]} 49... g6 {[%clk 0:00:43]}
50. Rd7 {[%clk 0:00:15.1]} 50... Ne4 {[%clk 0:00:40]} 51. f3 {[%clk 0:00:15.2]}
51... Nc3 {[%clk 0:00:36.5]} 52. Kf2 {[%clk 0:00:14.2]} 52... Rc1 {[%clk
0:00:34.4]} 53. Rd2 {[%clk 0:00:13.5]} 53... e4 {[%clk 0:00:32.8]} 54. Ke3
{[%clk 0:00:12.5]} 54... exf3 {[%clk 0:00:32.8]} 55. Kxf3 {[%clk 0:00:12.7]}
55... Nb1 {[%clk 0:00:30.7]} 56. Nd4 {[%clk 0:00:12.1]} 56... Nxd2+ {[%clk
0:00:30.6]} 57. Ke2 {[%clk 0:00:12]} 57... Ne4 {[%clk 0:00:29.9]} 58. c4 {[%clk
0:00:11.4]} 58... Rc3 {[%clk 0:00:28.2]} 59. b4 {[%clk 0:00:09.6]} 59... Rxc4
{[%clk 0:00:27.2]} 60. Kd3 {[%clk 0:00:10.1]} 60... Nd6 {[%clk 0:00:25.5]} 61.
Nb5 {[%clk 0:00:08.5]} 61... Rxb4 {[%clk 0:00:20.7]} 62. Nxd6 {[%clk 0:00:09]}
62... Rb3+ {[%clk 0:00:21.3]} 63. Ke4 {[%clk 0:00:09]} 63... Rxh3 {[%clk
0:00:22.2]} 64. Kd5 {[%clk 0:00:08.2]} 64... Rd3+ {[%clk 0:00:21.6]} 65. Ke6
{[%clk 0:00:08.8]} 65... Rxd6+ {[%clk 0:00:22.4]} 66. Kxd6 {[%clk 0:00:09.7]}
66... Kg7 {[%clk 0:00:23.2]} 67. Ke6 {[%clk 0:00:10.2]} 67... h5 {[%clk
0:00:23.8]} 68. g5 {[%clk 0:00:09.9]} 68... fxg5 {[%clk 0:00:23.6]} 69. Ke5
{[%clk 0:00:10.4]} 69... h4 {[%clk 0:00:24.2]} 70. Ke4 {[%clk 0:00:10.7]} 70...
g4 {[%clk 0:00:24.4]} 71. Kf4 {[%clk 0:00:11]} 71... h3 {[%clk 0:00:23.1]} 72.
Kg3 {[%clk 0:00:11.9]} 72... Kh6 {[%clk 0:00:23.2]} 73. Kh2 {[%clk 0:00:12.6]}
73... Kg5 {[%clk 0:00:24]} 74. Kg3 {[%clk 0:00:13.4]} 74... Kf5 {[%clk
0:00:24.2]} 75. Kh2 {[%clk 0:00:14.3]} 75... Kf4 {[%clk 0:00:24.5]} 76. Kg1
{[%clk 0:00:14.5]} 76... Kf3 {[%clk 0:00:24.7]} 77. Kh2 {[%clk 0:00:15.4]} 77...
Kf2 {[%clk 0:00:23.3]} 78. Kh1 {[%clk 0:00:15.6]} 78... h2 {[%clk 0:00:23.8]}
79. Kxh2 {[%clk 0:00:15.9]} 79... g3+ {[%clk 0:00:24.4]} 80. Kh3 {[%clk
0:00:14.5]} 80... g2 {[%clk 0:00:25]} 81. Kh4 {[%clk 0:00:14.6]} 81... g1=Q
{[%clk 0:00:25.3]} 82. Kh3 {[%clk 0:00:15.2]} 82... Qg3# {[%clk 0:00:24.5]} 0-1

[Event "Early-Titled-Tuesday-Blitz-January-16-2024"]
[Site "Chess.com"]
[Date "2024.01.16"]
[Round "3"]
[White "Chempiblinka"]
[Black "chess_blitz00"]
[Result "1-0"]
[WhiteElo "2268"]
[BlackElo "2476"]
[TimeControl "180+1"]
[EndTime "8:30:33 PST"]
[Termination "Chempiblinka won on time"]

1. Nf3 {[%clk 0:02:58.4]} 1... d6 {[%clk 0:02:59.4]} 2. g3 {[%clk 0:02:58.2]}
2... c5 {[%clk 0:02:58.5]} 3. Bg2 {[%clk 0:02:59.1]} 3... Nc6 {[%clk 0:02:58.3]}
4. O-O {[%clk 0:02:58]} 4... Bd7 {[%clk 0:02:58.4]} 5. c4 {[%clk 0:02:58.5]}
5... Qc8 {[%clk 0:02:58.8]} 6. Re1 {[%clk 0:02:57.5]} 6... h5 {[%clk 0:02:58.4]}
7. h4 {[%clk 0:02:57.3]} 7... Bh3 {[%clk 0:02:57.9]} 8. Bh1 {[%clk 0:02:57]}
8... Bg4 {[%clk 0:02:49.2]} 9. d3 {[%clk 0:02:51.6]} 9... Qd7 {[%clk 0:02:38.9]}
10. a3 {[%clk 0:02:48.4]} 10... e5 {[%clk 0:02:26.6]} 11. Nc3 {[%clk 0:02:44.4]}
11... Be7 {[%clk 0:02:22.5]} 12. Nd5 {[%clk 0:02:38.1]} 12... Bd8 {[%clk
0:02:20.5]} 13. b4 {[%clk 0:02:37.7]} 13... Nge7 {[%clk 0:02:11.2]} 14. Bg5
{[%clk 0:01:48.5]} 14... Nxd5 {[%clk 0:01:56.8]} 15. cxd5 {[%clk 0:01:49.4]}
15... Nd4 {[%clk 0:01:56.3]} 16. bxc5 {[%clk 0:01:43.2]} 16... Bxg5 {[%clk
0:01:34.2]} 17. hxg5 {[%clk 0:01:31]} 17... Bxf3 {[%clk 0:00:24.2]} 18. exf3
{[%clk 0:01:30.5]} 18... h4 {[%clk 0:00:24.7]} 19. Bg2 {[%clk 0:01:21.2]} 19...
h3 {[%clk 0:00:14]} 20. cxd6 {[%clk 0:01:04.9]} 20... hxg2 {[%clk 0:00:12]} 21.
Rxe5+ {[%clk 0:01:05.1]} 21... Kf8 {[%clk 0:00:12.3]} 22. g4 {[%clk 0:00:56.9]}
22... Nxf3+ {[%clk 0:00:10.3]} 23. Qxf3 {[%clk 0:00:55.2]} 23... Qxd6 {[%clk
0:00:07]} 24. Rae1 {[%clk 0:00:50.2]} 24... Rh1+ {[%clk 0:00:05.1]} 25. Kxg2
{[%clk 0:00:50.3]} 25... Rxe1 {[%clk 0:00:06]} 26. Rxe1 {[%clk 0:00:49.5]} 26...
Rd8 {[%clk 0:00:04.6]} 27. Rc1 {[%clk 0:00:43.5]} 27... Qxd5 {[%clk 0:00:03.4]}
28. Qxd5 {[%clk 0:00:44.4]} 28... Rxd5 {[%clk 0:00:03.6]} 29. Rc7 {[%clk
0:00:43.4]} 29... Rxd3 {[%clk 0:00:02.5]} 30. Rxb7 {[%clk 0:00:42.4]} 30... Rxa3
{[%clk 0:00:03.2]} 31. f3 {[%clk 0:00:41.1]} 31... g6 {[%clk 0:00:03.2]} 32. Kg3
{[%clk 0:00:42]} 32... a5 {[%clk 0:00:03.4]} 33. Ra7 {[%clk 0:00:41.3]} 33... a4
{[%clk 0:00:03.5]} 34. Kf4 {[%clk 0:00:41.4]} 34... Kg7 {[%clk 0:00:03.6]} 35.
Ra6 {[%clk 0:00:41.7]} 35... Ra1 {[%clk 0:00:03.7]} 36. Ra7 {[%clk 0:00:41.5]}
36... a3 {[%clk 0:00:04.1]} 37. Ra6 {[%clk 0:00:40.5]} 37... Kf8 {[%clk
0:00:04.1]} 38. Ra8+ {[%clk 0:00:40.4]} 38... Ke7 {[%clk 0:00:04.3]} 39. Ra4
{[%clk 0:00:41]} 39... Ke6 {[%clk 0:00:04.4]} 40. Ra7 {[%clk 0:00:40.2]} 40...
a2 {[%clk 0:00:03.2]} 41. Ra8 {[%clk 0:00:37.8]} 41... Kd5 {[%clk 0:00:03.5]}
42. Rd8+ {[%clk 0:00:37.2]} 42... Kc4 {[%clk 0:00:04.2]} 43. Rc8+ {[%clk
0:00:37.3]} 43... Kd3 {[%clk 0:00:04.8]} 44. Rd8+ {[%clk 0:00:37]} 44... Ke2
{[%clk 0:00:05]} 45. Ra8 {[%clk 0:00:37.1]} 45... Kf1 {[%clk 0:00:03.7]} 46. Ra3
{[%clk 0:00:35.5]} 46... Kg1 {[%clk 0:00:02.9]} 47. Ra4 {[%clk 0:00:34.3]} 47...
Kf2 {[%clk 0:00:03.1]} 48. Ra7 {[%clk 0:00:32.5]} 48... Ke1 {[%clk 0:00:03.8]}
49. Ke5 {[%clk 0:00:31.7]} 49... Ke2 {[%clk 0:00:03.8]} 50. Kf6 {[%clk
0:00:31.6]} 50... Kxf3 {[%clk 0:00:03.1]} 51. Kxf7 {[%clk 0:00:31.8]} 51... Kxg4
{[%clk 0:00:03.1]} 52. Kxg6 {[%clk 0:00:31.9]} 52... Kg3 {[%clk 0:00:03]} 53.
Ra4 {[%clk 0:00:31.9]} 53... Kh3 {[%clk 0:00:02.4]} 54. Kg7 {[%clk 0:00:32.1]}
54... Kg3 {[%clk 0:00:01.7]} 55. g6 {[%clk 0:00:32.3]} 55... Kf3 {[%clk
0:00:02.4]} 56. Ra3+ {[%clk 0:00:29.9]} 56... Ke2 {[%clk 0:00:02.7]} 57. Kg8
{[%clk 0:00:28.7]} 57... Kd2 {[%clk 0:00:01.7]} 58. g7 {[%clk 0:00:28.6]} 58...
Kc2 {[%clk 0:00:01.6]} 59. Ra8 {[%clk 0:00:29.4]} 59... Kb2 {[%clk 0:00:01.9]}
60. Rb8+ {[%clk 0:00:30.1]} 60... Kc2 {[%clk 0:00:02.6]} 61. Ra8 {[%clk
0:00:31]} 61... Kb2 {[%clk 0:00:02.9]} 62. Rb8+ {[%clk 0:00:29.5]} 62... Kc3
{[%clk 0:00:03.3]} 63. Ra8 {[%clk 0:00:28.9]} 63... Kb3 {[%clk 0:00:03.8]} 64.
Rb8+ {[%clk 0:00:27.7]} 64... Kc3 {[%clk 0:00:04.3]} 65. Ra8 {[%clk 0:00:26.4]}
65... Kb3 {[%clk 0:00:02.7]} 66. Kf8 {[%clk 0:00:27.3]} 66... Rf1+ {[%clk
0:00:02.3]} 67. Ke8 {[%clk 0:00:27.2]} 67... Re1+ {[%clk 0:00:02.9]} 68. Kf7
{[%clk 0:00:26.2]} 68... Rf1+ {[%clk 0:00:03.3]} 69. Ke6 {[%clk 0:00:25.5]}
69... Re1+ {[%clk 0:00:03]} 70. Kf6 {[%clk 0:00:24.6]} 70... Rf1+ {[%clk
0:00:03.3]} 71. Ke5 {[%clk 0:00:24.6]} 71... Re1+ {[%clk 0:00:03.1]} 72. Kf5
{[%clk 0:00:19.3]} 72... Rg1 {[%clk 0:00:02.2]} 73. Kf6 {[%clk 0:00:18.5]} 73...
Rg4 {[%clk 0:00:01.3]} 74. Rb8+ {[%clk 0:00:16.7]} 1-0